fUSD/lending_fUSD_20250503
["ID","MTS","AMOUNT","RATE_DAILY","PERIOD"]
[359666212,1746233441067,-460.57,0.000197,2]
[359666213,1746233441076,-450.0,0.000197,2]
[359666214,1746233441085,-450.0,0.000197,2]
[359666215,1746233441094,-997.76,0.000197,2]
[359666216,1746233441102,-518.75,0.000197,2]
[359666217,1746233441111,-678.15,0.000197,2]
[359666218,1746233441120,-300.0,0.000197,2]
[359666219,1746233441128,-179.37068499,0.000197,2]
[359666220,1746233441138,-478.11,0.000197,2]
[359666221,1746233441147,-450.0,0.000197,2]
[359666222,1746233441156,-450.0,0.000197,2]
[359666223,1746233441165,-450.0,0.000197,2]
[359666224,1746233441175,-450.0,0.000197,2]
[359666225,1746233441184,-476.55,0.000197,2]
[359666226,1746233441193,-450.0,0.000197,2]
[359666227,1746233441203,-450.0,0.000197,2]
[359666228,1746233441212,-499.59,0.000197,2]
[359666229,1746233441221,-450.0,0.000197,2]
[359666230,1746233441230,-638.21,0.000197,2]
[359666231,1746233441239,-450.0,0.000197,2]
[359666232,1746233441248,-599.89,0.000197,2]
[359666233,1746233441258,-790.37,0.000197,2]
[359666234,1746233441267,-450.0,0.000197,2]
[359666235,1746233441276,-719.52,0.000197,2]
[359666236,1746233441285,-450.0,0.000197,2]
[359666237,1746233441294,-450.0,0.000197,2]
[359666238,1746233441303,-475.7,0.000197,2]
[359666239,1746233441312,-467.65045518,0.000197,2]
[359666240,1746233441321,-710.06,0.000197,2]
[359666241,1746233441330,-450.0,0.000197,2]
[359666242,1746233441338,-556.64,0.000197,2]
[359666243,1746233441347,-450.0,0.000197,2]
[359666244,1746233441356,-450.0,0.000197,2]
[359666245,1746233441365,-1190.79,0.000197,2]
[359666246,1746233441374,-450.0,0.000197,2]
[359666247,1746233441383,-450.0,0.000197,2]
[359666248,1746233441392,-661.95,0.000197,2]
[359666249,1746233441402,-450.0,0.000197,2]
[359666250,1746233441412,-556.85,0.000197,2]
[359666251,1746233441421,-450.0,0.000197,2]
[359666252,1746233441430,-450.0,0.000197,2]
[359666253,1746233441440,-464.27,0.000197,2]
[359666254,1746233441450,-1824.33,0.000197,2]
[359666255,1746233441459,-1119.51,0.000197,2]
[359666256,1746233441469,-450.0,0.000197,2]
[359666257,1746233441478,-450.0,0.000197,2]
[359666258,1746233441488,-718.84,0.000197,2]
[359666259,1746233441497,-450.0,0.000197,2]
[359666260,1746233441507,-450.0,0.000197,2]
[359666261,1746233441516,-450.0,0.000197,2]
[359666262,1746233441527,-991.51,0.000197,2]
[359666263,1746233441537,-450.0,0.000197,2]
[359666264,1746233441547,-450.0,0.000197,2]
[359666265,1746233441557,-450.0,0.000197,2]
[359666266,1746233441566,-450.0,0.000197,2]
[359666267,1746233441576,-450.0,0.000197,2]
[359666268,1746233441586,-585.96399907,0.000197,2]
[359666269,1746233441596,-450.0,0.000197,2]
[359666270,1746233441606,-450.0,0.000197,2]
[359666271,1746233441615,-1030.31,0.000197,2]
[359666272,1746233441625,-450.0,0.000197,2]
[359666273,1746233441635,-450.0,0.000197,2]
[359666274,1746233441644,-511.21,0.000197,2]
[359666275,1746233441654,-450.0,0.000197,2]
[359666276,1746233441664,-450.0,0.000197,2]
[359666277,1746233441673,-450.0,0.000197,2]
[359666278,1746233441686,-450.0,0.000197,2]
[359666279,1746233441696,-450.0,0.000197,2]
[359666280,1746233441706,-450.0,0.000197,2]
[359666281,1746233441716,-450.0,0.000197,2]
[359666282,1746233441726,-450.0,0.000197,2]
[359666283,1746233441735,-913.43,0.000197,2]
[359666284,1746233441745,-474.2,0.000197,2]
[359666285,1746233441755,-450.0,0.000197,2]
[359666286,1746233441765,-450.0,0.000197,2]
[359666287,1746233441775,-1124.03,0.000197,2]
[359666288,1746233441785,-450.0,0.000197,2]
[359666289,1746233441796,-450.0,0.000197,2]
[359666290,1746233441805,-450.0,0.000197,2]
[359666291,1746233441815,-450.0,0.000197,2]
[359666292,1746233441825,-450.0,0.000197,2]
[359666293,1746233441836,-454.99,0.000197,2]
[359666294,1746233441847,-581.39,0.000197,2]
[359666295,1746233441856,-450.0,0.000197,2]
[359666296,1746233441866,-450.0,0.000197,2]
[359666297,1746233441876,-554.14,0.000197,2]
[359666298,1746233441886,-450.0,0.000197,2]
[359666299,1746233441896,-1518.08,0.000197,2]
[359666300,1746233441906,-709.8,0.000197,2]
[359666301,1746233441916,-758.4,0.000197,2]
[359666302,1746233441926,-623.47,0.000197,2]
[359666303,1746233441936,-450.0,0.000197,2]
[359666304,1746233441946,-450.0,0.000197,2]
[359666305,1746233441956,-450.0,0.000197,2]
[359666306,1746233441966,-450.0,0.000197,2]
[359666307,1746233441977,-450.0,0.000197,2]
[359666308,1746233441987,-450.0,0.000197,2]
[359666309,1746233441997,-3818.09,0.000197,2]
[359666310,1746233442007,-450.0,0.000197,2]
[359666311,1746233442018,-898.33,0.000197,2]
[359666312,1746233442028,-450.0,0.000197,2]
[359666313,1746233442163,-4333.06,0.000197,2]
[359666314,1746233442174,-753.48,0.000197,2]
[359666315,1746233442183,-3935.8,0.000197,2]
[359666316,1746233442193,-863.93,0.000197,2]
[359666317,1746233442203,-450.0,0.000197,2]
[359666318,1746233442212,-473.78,0.000197,2]
[359666319,1746233442222,-450.0,0.000197,2]
[359666320,1746233442232,-450.0,0.000197,2]
[359666321,1746233442241,-450.0,0.000197,2]
[359666322,1746233442251,-500.0,0.000197,2]
[359666323,1746233442260,-500.0,0.000197,2]
[359666324,1746233442270,-450.0,0.000197,2]
[359666325,1746233442280,-450.0,0.000197,2]
[359666326,1746233442290,-450.0,0.000197,2]
[359666327,1746233442300,-530.1,0.000197,2]
[359666328,1746233442310,-685.43,0.000197,2]
[359666329,1746233442319,-4323.14,0.000197,2]
[359666330,1746233442329,-1905.96967337,0.000197,2]
[359666331,1746233442339,-83080.32,0.000197,2]
[359666332,1746233442348,-2279.09,0.000197,2]
[359666333,1746233442358,-450.0,0.000197,2]
[359666334,1746233442367,-1002.37,0.000197,2]
[359666335,1746233442376,-4573.93,0.000197,2]
[359666336,1746233442386,-652.57,0.000197,2]
[359666337,1746233442396,-26284.84,0.000197,2]
[359666338,1746233442406,-541.22,0.000197,2]
[359666339,1746233442415,-1655.58,0.000197,2]
[359666340,1746233442425,-2059.63,0.000197,2]
[359666341,1746233442434,-14022.43,0.000197,2]
[359666342,1746233442444,-1455.4128938,0.000197,2]
[359666343,1746233442459,-450.0,0.00019701,2]
[359666344,1746233442469,-450.0,0.00019701,2]
[359666345,1746233442479,-500.0,0.00019701,2]
[359666346,1746233442488,-334.33492292,0.00019701,2]
[359666347,1746233442498,-450.0,0.00019701,2]
[359666349,1746233442508,-211.18746322,0.00019701,2]
[359666350,1746233442519,-450.0,0.00019701,2]
[359666351,1746233442528,-450.0,0.00019701,2]
[359666352,1746233442538,-450.0,0.00019701,2]
[359666353,1746233442548,-450.0,0.00019701,2]
[359666355,1746233442558,-450.0,0.00019701,2]
[359666357,1746233442568,-450.0,0.00019701,2]
[359666358,1746233442577,-500.0,0.00019708,2]
[359666360,1746233442587,-500.0,0.00019708,2]
[359666361,1746233442596,-500.0,0.00019708,2]
[359666363,1746233442606,-150.0,0.00019708,2]
[359666364,1746233442615,-150.97981124,0.00019708,2]
[359666365,1746233442626,-500.0,0.00019708,2]
[359666366,1746233442635,-150.0,0.00019708,2]
[359666367,1746233442646,-418.0,0.00019708,2]
[359666368,1746233442656,-500.0,0.00019708,2]
[359666369,1746233442666,-150.0,0.00019708,2]
[359666370,1746233442676,-500.0,0.00019708,2]
[359666371,1746233442690,-150.0,0.00019708,2]
[359666372,1746233442701,-500.0,0.00019708,2]
[359666373,1746233442711,-423.0,0.00019708,2]
[359666374,1746233442722,-150.0,0.00019708,2]
[359666375,1746233442732,-500.0,0.00019708,2]
[359666376,1746233442742,-150.0,0.00019708,2]
[359666377,1746233442751,-500.0,0.00019708,2]
[359666378,1746233442764,-1905.96967337,0.00019733,2]
[359666379,1746233442774,-1455.4128938,0.00019733,2]
[359666380,1746233442785,-150.0,0.00019737,2]
[359666381,1746233442794,-150.0,0.00019738,2]
[359666382,1746233442804,-150.0,0.00019742,2]
[359666383,1746233442815,-150.0,0.00019748,2]
[359666384,1746233442827,-150.0,0.00019751,2]
[359666385,1746233442837,-150.0,0.00019756,2]
[359666386,1746233442846,-150.0,0.00019759,2]
[359666387,1746233442857,-150.0,0.00019766,2]
[359666388,1746233442867,-1905.96967337,0.00019767,2]
[359666389,1746233442876,-1455.4128938,0.00019767,2]
[359666390,1746233442886,-151.04397921,0.00019769,2]
[359666391,1746233442896,-150.0,0.00019773,2]
[359666392,1746233442906,-1391.87744532,0.00019774,2]
[359666393,1746233442916,-150.0,0.00019775,2]
[359666394,1746233442925,-150.0,0.00019775,2]
[359666395,1746233442935,-150.0,0.00019779,2]
[359666396,1746233442945,-12500.0,0.00019786,2]
[359666397,1746233442955,-150.0,0.00019787,2]
[359666398,1746233442964,-150.0,0.00019787,2]
[359666399,1746233442974,-150.0,0.00019788,2]
[359666400,1746233442984,-150.0,0.00019794,2]
[359666401,1746233442994,-12500.0,0.00019794,2]
[359666402,1746233443004,-884.332903,0.00019799,2]
[359666403,1746233443014,-150.0,0.000198,2]
[359666404,1746233443023,-1905.96967337,0.000198,2]
[359666405,1746233443033,-1455.4128938,0.000198,2]
[359666406,1746233443044,-11860.88526531,0.000198,2]
[359666407,1746233443054,-500.0,0.00019803,2]
[359666408,1746233443063,-12500.0,0.00019803,2]
[359666409,1746233443073,-150.0,0.00019809,2]
[359666410,1746233443083,-296.50466061,0.0001981,2]
[359666411,1746233443093,-12500.0,0.00019812,2]
[359666412,1746233443103,-150.0,0.00019819,2]
[359666414,1746233443112,-12500.0,0.00019821,2]
[359666416,1746233443122,-12500.0,0.0001983,2]
[359666418,1746233443132,-150.0,0.00019831,2]
[359666420,1746233443142,-1905.96967337,0.00019833,2]
[359666422,1746233443152,-1455.4128938,0.00019833,2]
[359666423,1746233443161,-9704.62694084,0.00019838,2]
[359666424,1746233443624,-450.0,0.00019699,2]
[359666425,1746233443633,-2795.37305916,0.00019838,2]
[359666426,1746233443932,-1055.70442523,0.00019839,2]
[359666427,1746233443958,-944.29557477,0.00019839,2]
[359666428,1746233443968,-200.0,0.00019839,2]
[359666429,1746233443978,-374.24,0.00019839,2]
[359666430,1746233443988,-500.0,0.0001984,2]
[359666431,1746233443998,-2000.0,0.0001984,2]
[359666432,1746233444007,-346.79921679,0.0001984,2]
[359666433,1746233444019,-1653.20078321,0.0001984,2]
[359666434,1746233444029,-200.0,0.0001984,2]
[359666435,1746233444038,-150.0,0.00019846,2]
[359666436,1746233444047,-4871.35823107,0.00019847,2]
[359666437,1746233444059,-7628.64176893,0.00019847,2]
[359666438,1746233444069,-151.0,0.00019849,2]
[359666439,1746233444078,-151.0,0.0001985,2]
[359666440,1746233444087,-150.0,0.0001985,2]
[359666441,1746233444097,-151.0,0.0001985,2]
[359666442,1746233444106,-151.0,0.00019851,2]
[359666443,1746233444115,-151.0,0.00019852,2]
[359666444,1746233444125,-12500.0,0.00019856,2]
[359666445,1746233444135,-150.0,0.00019858,2]
[359666446,1746233444144,-150.0,0.0001986,2]
[359666447,1746233444153,-1000.0,0.00019863,2]
[359666448,1746233444163,-12500.0,0.00019865,2]
[359666449,1746233444172,-150.0,0.00019865,2]
[359666450,1746233444182,-1905.96967337,0.00019867,2]
[359666451,1746233444192,-1455.4128938,0.00019867,2]
[359666452,1746233444202,-150.0,0.0001987,2]
[359666453,1746233444211,-155.96257902,0.00019873,2]
[359666454,1746233444221,-12500.0,0.00019874,2]
[359666455,1746233444230,-5738.9341,0.00019874,2]
[359666456,1746233444240,-165.7836071,0.00019874,2]
[359666457,1746233444249,-233.19087666,0.00019874,2]
[359666458,1746233444259,-233.19087662,0.00019878,2]
[359666459,1746233444268,-150.0,0.0001988,2]
[359666460,1746233444278,-150.0,0.00019881,2]
[359666461,1746233444287,-150.0,0.00019882,2]
[359666462,1746233444297,-12500.0,0.00019882,2]
[359666463,1746233444306,-165.78360708,0.00019883,2]
[359666464,1746233444316,-233.19087662,0.00019883,2]
[359666465,1746233444325,-183.93697619,0.00019886,2]
[359666466,1746233444334,-233.19087662,0.00019887,2]
[359666467,1746233444343,-183.93697618,0.00019891,2]
[359666468,1746233444352,-12500.0,0.00019891,2]
[359666469,1746233444361,-165.78360708,0.00019891,2]
[359666470,1746233444370,-233.19087662,0.00019891,2]
[359666471,1746233444379,-150.0,0.00019892,2]
[359666472,1746233444388,-150.0,0.00019894,2]
[359666473,1746233444397,-183.93697618,0.00019895,2]
[359666474,1746233444406,-233.19087662,0.00019896,2]
[359666475,1746233444415,-150.0,0.00019899,2]
[359666476,1746233444424,-405.21,0.00019899,2]
[359666477,1746233444439,-165.78360708,0.000199,2]
[359666478,1746233444449,-12500.0,0.000199,2]
[359666479,1746233444458,-12500.0,0.000199,2]
[359666480,1746233444467,-183.93697618,0.000199,2]
[359666481,1746233444476,-2743.91594593,0.000199,2]
[359666482,1746233444486,-1905.96967337,0.000199,2]
[359666483,1746233444495,-180.12891608,0.000199,3]
[359666484,1746233444504,-165.23990396,0.000199,2]
[359666485,1746233444513,-1455.4128938,0.000199,2]
[359666486,1746233444522,-233.19087662,0.000199,2]
[359666487,1746233444531,-150.0,0.00019907,2]
[359666488,1746233444540,-150.0,0.00019911,2]
[359666489,1746233444549,-150.0,0.00019911,2]
[359666490,1746233444559,-150.0,0.00019923,2]
[359666491,1746233444571,-150.0,0.00019925,2]
[359666492,1746233444581,-150.0,0.00019927,2]
[359666493,1746233444590,-150.0,0.00019932,2]
[359666494,1746233444599,-150.0,0.00019932,2]
[359666495,1746233444608,-150.0,0.00019932,2]
[359666496,1746233444618,-150.0,0.00019934,2]
[359666497,1746233444628,-150.0,0.00019941,2]
[359666498,1746233444637,-150.0,0.00019948,2]
[359666499,1746233444646,-150.0,0.0001995,2]
[359666500,1746233444655,-150.0,0.00019951,2]
[359666501,1746233444663,-150.0,0.00019952,2]
[359666502,1746233444672,-150.0,0.00019961,2]
[359666503,1746233444682,-3695.479,0.00019962,2]
[359666504,1746233444694,-150.0,0.00019964,2]
[359666505,1746233444704,-1000.0,0.00019965,2]
[359666506,1746233444713,-150.0,0.00019965,2]
[359666507,1746233444723,-150.0,0.00019968,2]
[359666508,1746233444733,-245.714,0.0001997,2]
[359666509,1746233444743,-1147.11099996,0.00019971,2]
[359666510,1746233444752,-500.0,0.00019973,2]
[359666511,1746233444762,-24257.0,0.00019973,2]
[359666512,1746233444772,-920.0,0.00019973,2]
[359666513,1746233444782,-501.47327578,0.00019973,2]
[359666514,1746233444791,-165.99958587,0.00019973,2]
[359666515,1746233444800,-502.46531198,0.00019973,2]
[359666516,1746233444810,-162.40954813,0.00019973,2]
[359666517,1746233444818,-500.0,0.00019973,2]
[359666518,1746233444827,-500.0,0.00019973,2]
[359666519,1746233444835,-500.0,0.00019973,2]
[359666520,1746233444845,-500.0,0.00019973,2]
[359666521,1746233444854,-505.12152298,0.00019973,2]
[359666522,1746233444863,-500.0,0.00019973,2]
[359666523,1746233444872,-515.34803,0.00019973,2]
[359666524,1746233444882,-162.22541034,0.00019973,2]
[359666525,1746233444891,-500.0,0.00019973,2]
[359666526,1746233444900,-500.0,0.00019973,2]
[359666527,1746233444910,-450.0,0.00019973,2]
[359666528,1746233444919,-450.0,0.00019973,2]
[359666529,1746233444929,-450.0,0.00019973,2]
[359666530,1746233444939,-618.06,0.00019973,2]
[359666531,1746233444949,-450.0,0.00019973,2]
[359666532,1746233444958,-450.0,0.00019973,2]
[359666533,1746233444968,-450.0,0.00019973,2]
[359666534,1746233444978,-450.0,0.00019973,2]
[359666535,1746233444987,-450.0,0.00019973,2]
[359666536,1746233444996,-450.0,0.00019973,2]
[359666537,1746233445006,-450.0,0.00019973,2]
[359666538,1746233445016,-450.0,0.00019973,2]
[359666539,1746233445025,-450.0,0.00019973,2]
[359666540,1746233445035,-450.0,0.00019973,2]
[359666541,1746233445044,-872.76,0.00019973,2]
[359666542,1746233445053,-826.7929,0.00019973,2]
[359666543,1746233445062,-450.0,0.00019973,2]
[359666544,1746233445071,-450.0,0.00019973,2]
[359666545,1746233445081,-450.0,0.00019973,2]
[359666546,1746233445090,-450.0,0.00019973,2]
[359666547,1746233445099,-207.66,0.00019973,2]
[359666548,1746233445109,-450.0,0.00019973,2]
[359666549,1746233445118,-575.646181,0.00019973,2]
[359666550,1746233445128,-450.0,0.00019973,2]
[359666551,1746233445137,-450.0,0.00019973,2]
[359666552,1746233445146,-450.0,0.00019973,2]
[359666553,1746233445155,-644.42,0.00019973,2]
[359666554,1746233445164,-450.0,0.00019973,2]
[359666555,1746233445174,-450.0,0.00019973,2]
[359666556,1746233445183,-464.08,0.00019973,2]
[359666557,1746233445192,-450.0,0.00019973,2]
[359666558,1746233445203,-450.0,0.00019973,2]
[359666559,1746233445214,-460.60661297,0.00019973,2]
[359666560,1746233445223,-450.0,0.00019973,2]
[359666561,1746233445233,-450.0,0.00019973,2]
[359666562,1746233445243,-450.0,0.00019973,2]
[359666563,1746233445253,-450.0,0.00019973,2]
[359666564,1746233445262,-450.0,0.00019973,2]
[359666565,1746233445271,-450.0,0.00019973,2]
[359666566,1746233445281,-450.0,0.00019973,2]
[359666567,1746233445291,-450.0,0.00019973,2]
[359666568,1746233445300,-450.0,0.00019973,2]
[359666569,1746233445309,-450.0,0.00019973,2]
[359666570,1746233445319,-450.0,0.00019973,2]
[359666571,1746233445328,-450.0,0.00019973,2]
[359666572,1746233445337,-450.0,0.00019973,2]
[359666573,1746233445346,-450.0,0.00019973,2]
[359666574,1746233445354,-450.0,0.00019973,2]
[359666575,1746233445363,-450.0,0.00019973,2]
[359666576,1746233445372,-450.0,0.00019973,2]
[359666577,1746233445381,-450.0,0.00019973,2]
[359666578,1746233445390,-450.0,0.00019973,2]
[359666579,1746233445399,-450.0,0.00019973,2]
[359666580,1746233445408,-450.0,0.00019973,2]
[359666581,1746233445417,-359.32732009,0.00019973,2]
[359666582,1746233445426,-450.0,0.00019973,2]
[359666583,1746233445435,-246.53420213,0.00019973,2]
[359666584,1746233445444,-450.0,0.00019973,2]
[359666585,1746233445453,-450.0,0.00019973,2]
[359666586,1746233445462,-450.0,0.00019973,2]
[359666587,1746233445471,-450.0,0.00019973,2]
[359666589,1746233445480,-250.0,0.00019973,2]
[359666591,1746233445489,-450.0,0.00019973,2]
[359666592,1746233445497,-450.0,0.00019973,2]
[359666593,1746233445506,-380.38508656,0.00019973,2]
[359666594,1746233445515,-450.0,0.00019973,2]
[359666595,1746233445523,-450.0,0.00019973,2]
[359666596,1746233445530,-495.44,0.00019973,2]
[359666597,1746233445541,-450.0,0.00019973,2]
[359666598,1746233445551,-450.0,0.00019973,2]
[359666599,1746233445563,-6535.83,0.00019973,2]
[359666600,1746233445573,-450.0,0.00019973,2]
[359666601,1746233445583,-714.92,0.00019973,2]
[359666602,1746233445592,-450.0,0.00019973,2]
[359666603,1746233445601,-709.35,0.00019973,2]
[359666604,1746233445611,-538.1,0.00019973,2]
[359666605,1746233445620,-907.72,0.00019973,2]
[359666606,1746233445630,-450.0,0.00019973,2]
[359666607,1746233445639,-497.61,0.00019973,2]
[359666608,1746233445650,-450.0,0.00019973,2]
[359666609,1746233445660,-450.0,0.00019973,2]
[359666610,1746233445669,-450.0,0.00019973,2]
[359666611,1746233445678,-450.0,0.00019973,2]
[359666612,1746233445687,-450.0,0.00019973,2]
[359666613,1746233445697,-450.0,0.00019973,2]
[359666614,1746233445708,-5869.55,0.00019973,2]
[359666615,1746233445717,-186.65092155,0.00019973,2]
[359666616,1746233445727,-450.0,0.00019973,2]
[359666617,1746233445737,-450.0,0.00019973,2]
[359666618,1746233445746,-450.0,0.00019973,2]
[359666619,1746233445755,-450.0,0.00019973,2]
[359666620,1746233445764,-450.0,0.00019973,2]
[359666621,1746233445774,-237.82795749,0.00019973,2]
[359666622,1746233445783,-450.0,0.00019973,2]
[359666623,1746233445793,-462.76,0.00019973,2]
[359666624,1746233445803,-450.0,0.00019973,2]
[359666625,1746233445812,-450.0,0.00019973,2]
[359666626,1746233445822,-450.0,0.00019973,2]
[359666627,1746233445831,-450.0,0.00019973,2]
[359666628,1746233445840,-450.0,0.00019973,2]
[359666629,1746233445850,-450.0,0.00019973,2]
[359666630,1746233445860,-450.0,0.00019973,2]
[359666631,1746233445870,-479.91,0.00019973,2]
[359666632,1746233445880,-450.0,0.00019973,2]
[359666633,1746233445889,-450.0,0.00019973,2]
[359666634,1746233445898,-620.17,0.00019973,2]
[359666635,1746233445908,-450.0,0.00019973,2]
[359666636,1746233445917,-450.0,0.00019973,2]
[359666637,1746233445927,-450.0,0.00019973,2]
[359666638,1746233445936,-450.0,0.00019973,2]
[359666639,1746233445946,-450.0,0.00019973,2]
[359666640,1746233445956,-450.0,0.00019973,2]
[359666641,1746233445965,-450.0,0.00019973,2]
[359666642,1746233445975,-450.0,0.00019973,2]
[359666643,1746233445985,-450.0,0.00019973,2]
[359666644,1746233445995,-450.0,0.00019973,2]
[359666645,1746233446004,-450.0,0.00019973,2]
[359666646,1746233446014,-2167.75,0.00019973,2]
[359666647,1746233446024,-512.7,0.00019973,2]
[359666648,1746233446034,-509.55,0.00019973,2]
[359666649,1746233446043,-450.0,0.00019973,2]
[359666650,1746233446054,-450.0,0.00019973,2]
[359666651,1746233446063,-450.0,0.00019973,2]
[359666652,1746233446073,-450.0,0.00019973,2]
[359666653,1746233446082,-450.0,0.00019973,2]
[359666654,1746233446091,-450.0,0.00019973,2]
[359666655,1746233446102,-450.0,0.00019973,2]
[359666656,1746233446112,-450.0,0.00019973,2]
[359666657,1746233446122,-1195.21,0.00019973,2]
[359666658,1746233446132,-450.0,0.00019973,2]
[359666659,1746233446141,-450.0,0.00019973,2]
[359666660,1746233446151,-1205.88,0.00019973,2]
[359666661,1746233446160,-450.0,0.00019973,2]
[359666662,1746233446172,-450.0,0.00019973,2]
[359666663,1746233446181,-450.0,0.00019973,2]
[359666664,1746233446191,-450.0,0.00019973,2]
[359666665,1746233446200,-379.87260567,0.00019973,2]
[359666666,1746233446210,-450.0,0.00019973,2]
[359666667,1746233446219,-450.0,0.00019973,2]
[359666668,1746233446228,-450.0,0.00019973,2]
[359666669,1746233446238,-450.0,0.00019973,2]
[359666670,1746233446248,-450.0,0.00019973,2]
[359666671,1746233446257,-536.64,0.00019973,2]
[359666672,1746233446267,-999.0,0.00019973,2]
[359666673,1746233446277,-512.97,0.00019973,2]
[359666674,1746233446286,-1711.16,0.00019973,2]
[359666675,1746233446295,-450.0,0.00019973,2]
[359666676,1746233446305,-450.0,0.00019973,2]
[359666677,1746233446315,-630.69,0.00019973,2]
[359666678,1746233446324,-1058.59,0.00019973,2]
[359666679,1746233446333,-450.0,0.00019973,2]
[359666680,1746233446343,-450.0,0.00019973,2]
[359666681,1746233446353,-450.0,0.00019973,2]
[359666682,1746233446363,-1386.82,0.00019973,2]
[359666683,1746233446373,-450.0,0.00019973,2]
[359666684,1746233446383,-539.7,0.00019973,2]
[359666685,1746233446392,-528.68,0.00019973,2]
[359666686,1746233446403,-450.0,0.00019973,2]
[359666687,1746233446413,-4931.5,0.00019973,2]
[359666688,1746233446423,-450.0,0.00019973,2]
[359666689,1746233446432,-1011.87,0.00019973,2]
[359666690,1746233446442,-497.98,0.00019973,2]
[359666691,1746233446454,-450.0,0.00019973,2]
[359666692,1746233446463,-450.0,0.00019973,2]
[359666693,1746233446473,-450.0,0.00019973,2]
[359666694,1746233446483,-450.0,0.00019973,2]
[359666695,1746233446494,-450.0,0.00019973,2]
[359666696,1746233446504,-2960.34,0.00019973,2]
[359666697,1746233446514,-450.0,0.00019973,2]
[359666698,1746233446524,-450.0,0.00019973,2]
[359666699,1746233446533,-1387.74,0.00019973,2]
[359666700,1746233446543,-1612.9,0.00019973,2]
[359666701,1746233446552,-807.64,0.00019973,2]
[359666702,1746233446567,-450.0,0.00019973,2]
[359666703,1746233446576,-482.26,0.00019973,2]
[359666704,1746233446585,-239.55596524,0.00019973,2]
[359666705,1746233446594,-498.9,0.00019973,2]
[359666706,1746233446603,-469.78,0.00019973,2]
[359666707,1746233446613,-727.04,0.00019973,2]
[359666708,1746233446623,-450.0,0.00019973,2]
[359666709,1746233446634,-1520.88,0.00019973,2]
[359666710,1746233446643,-450.0,0.00019973,2]
[359666711,1746233446653,-515.1,0.00019973,2]
[359666712,1746233446663,-450.0,0.00019973,2]
[359666713,1746233446673,-450.0,0.00019973,2]
[359666714,1746233446684,-574.21,0.00019973,2]
[359666715,1746233446695,-450.0,0.00019973,2]
[359666716,1746233446705,-450.0,0.00019973,2]
[359666717,1746233446715,-450.0,0.00019973,2]
[359666718,1746233446726,-450.0,0.00019973,2]
[359666719,1746233446736,-450.0,0.00019973,2]
[359666720,1746233446745,-450.0,0.00019973,2]
[359666721,1746233446755,-450.0,0.00019973,2]
[359666722,1746233446765,-450.0,0.00019973,2]
[359666723,1746233446775,-247.39460982,0.00019973,2]